fUSD/lending_fUSD_20251101
["ID","MTS","AMOUNT","RATE_DAILY","PERIOD"]
[392822885,1761998237501,2247.78232474,0.000149,2]
[392822886,1761998238323,248.71531821,0.00014991,2]
[392822887,1761998240279,514.84070869,0.00014991,2]
[392822888,1761998247225,151.0,0.00014991,2]
[392822889,1761998256451,175.0,0.000147,2]
[392822890,1761998313047,183.96,0.00011759,2]
[392822892,1761998364492,200.0,0.00014698,2]
[392822894,1761998406322,1659.58,0.0001499,2]
[392822895,1761998406551,1659.58,0.0001499,2]
[392822896,1761998408209,6121.89,0.000149,2]
[392822897,1761998408234,10000.01,0.000149,2]
[392822898,1761998408258,3878.12,0.000149,2]
[392822904,1761998431041,2200.0,0.00014986,2]
[392822908,1761998457139,229.38081547,0.00014991,2]
[392822909,1761998492951,901.989,0.000147,2]
[392822910,1761998503125,1001.91533,0.00031506,120]
[392822911,1761998534146,151.0,0.00014991,2]
[392822912,1761998545097,248.71531821,0.00014991,2]
[392822913,1761998556631,322.6107,0.00014991,2]
[392822914,1761998557943,191.00288,0.0001485,2]
[392822915,1761998558474,5755.31128632,0.000149,2]
[392822916,1761998558498,10000.01,0.000149,2]
[392822917,1761998558521,10000.01,0.000149,2]
[392822918,1761998558544,6091.53941368,0.000149,2]
[392822919,1761998646992,392.43043164,0.000149,2]
[392822921,1761998686956,2599.77035988,0.000149,2]
[392822922,1761998718019,916.2697948,0.00014986,2]
[392822923,1761998718041,1283.7302052,0.00014986,2]
[392822924,1761998728090,8716.2797948,0.000149,2]
[392822925,1761998729891,-259.6899052,0.000149,2]
[392822927,1761998731789,1000.0,0.00014064,2]
[392822928,1761998754156,5667.7352112,0.000149,2]
[392822929,1761998777243,261.62028776,0.000149,2]
[392822931,1761998877018,500.0,0.00030136,120]
[392822932,1761998877260,500.0,0.0003041,120]
[392822933,1761998877494,500.0,0.00030684,120]
[392822934,1761998877729,500.0,0.00030958,120]
[392822935,1761998877973,500.0,0.00031232,120]
[392822936,1761998878422,500.0,0.00031506,120]
[392822937,1761998905926,332.37279,0.0001485,2]
[392822938,1761998907456,174.41352518,0.000149,2]
[392822939,1761998909376,498.60150792,0.00014651,2]
[392822940,1761998946930,999.0,0.00014067,3]
[392822941,1761998996018,185.42162884,0.00014891,2]
[392822954,1761999031990,-691.39774486,0.00014991,2]
[392822955,1761999032000,-151.0,0.00014991,2]
[392822956,1761999032010,-374.09841853,0.00014991,2]
[392822957,1761999032019,-248.71531821,0.00014991,2]
[392822958,1761999032029,-195.0,0.00014994,2]
[392822959,1761999032040,-482.0,0.00014997,2]
[392822960,1761999032052,-1200.0,0.00014997,2]
[392822961,1761999032062,-151.0,0.00014997,2]
[392822962,1761999032072,-150.0,0.00014998,2]
[392822963,1761999032081,-300.0,0.00014998,2]
[392822964,1761999032091,-300.0,0.00014998,2]
[392822965,1761999032100,-300.0,0.00014998,2]
[392822966,1761999032109,-500.0,0.00014999,2]
[392822967,1761999032118,-500.0,0.00014999,2]
[392822968,1761999032128,-350.0,0.00014999,2]
[392822969,1761999032137,-4591.3885184,0.00014999,2]
[392822970,1761999032149,-2632.90544864,0.00014999,2]
[392822971,1761999032160,-1269.3013,0.00014999,2]
[392822972,1761999032176,-1291.09264966,0.00014999,2]
[392822973,1761999032185,-735.48718323,0.00014999,2]
[392823105,1761999038005,-464.41489049,0.00014999,2]
[392823106,1761999038015,-1387.56033413,0.00014999,2]
[392823135,1761999040271,-2032.43966587,0.00014999,2]
[392823136,1761999040281,-607.0,0.00014999,2]
[392823137,1761999040291,-500.0,0.00014999,2]
[392823138,1761999040302,-500.0,0.00014999,2]
[392823139,1761999040313,-500.0,0.00014999,2]
[392823140,1761999040322,-197.76380121,0.00014999,2]
[392823141,1761999040331,-432.5980707,0.00014999,2]
[392823142,1761999040340,-3111.3790131,0.00014999,2]
[392823143,1761999040352,-23433.0332982,0.00014999,2]
[392823144,1761999040362,-500.0,0.00014999,2]
[392823145,1761999040371,-626.15434091,0.00014999,2]
[392823146,1761999040383,-500.0,0.00014999,2]
[392823147,1761999040392,-500.0,0.00014999,2]
[392823148,1761999040401,-500.0,0.00014999,2]
[392823149,1761999040411,-500.0,0.00014999,2]
[392823150,1761999040420,-500.0,0.00014999,2]
[392823151,1761999040429,-500.0,0.00014999,2]
[392823152,1761999040438,-500.0,0.00014999,2]
[392823153,1761999040448,-500.0,0.00014999,2]
[392823154,1761999040457,-500.0,0.00014999,2]
[392823155,1761999040466,-500.0,0.00014999,2]
[392823156,1761999040475,-500.0,0.00014999,2]
[392823157,1761999040485,-345.92808519,0.00014999,2]
[392823158,1761999040494,-1233.27,0.00014999,2]
[392823159,1761999040503,-500.0,0.00014999,2]
[392823160,1761999040512,-486.20088814,0.00014999,2]
[392823161,1761999040521,-512.63502965,0.00014999,2]
[392823162,1761999040530,-354.05632821,0.00014999,2]
[392823163,1761999040538,-15711.9564038,0.00014999,2]
[392823164,1761999040547,-1000.0,0.00014999,2]
[392823165,1761999040556,-666.0,0.00014999,2]
[392823166,1761999040565,-1314.0,0.00014999,2]
[392823167,1761999040574,-1594.0,0.00014999,2]
[392823168,1761999040583,-1272.0,0.00014999,2]
[392823169,1761999040592,-819.0,0.00014999,2]
[392823170,1761999040602,-905.0,0.00014999,2]
[392823171,1761999040611,-1187.0,0.00014999,2]
[392823172,1761999040621,-559.0,0.00014999,2]
[392823173,1761999040630,-1168.842,0.00014999,2]
[392823174,1761999040639,-2188.503,0.00014999,2]
[392823175,1761999040648,-6652.0,0.00014999,2]
[392823176,1761999040657,-6468.0,0.00014999,2]
[392823177,1761999040666,-2928.0,0.00015,2]
[392823178,1761999040675,-1293850.13452458,0.00015,2]
[392823187,1761999046274,-3513.6603485,0.00015,2]
[392823191,1761999093005,361.4652387,0.000147,2]
[392823192,1761999093028,1491.0767613,0.000147,2]
[392823193,1761999107452,1441.42136242,0.000149,2]
[392823194,1761999143005,177.82113608,0.000149,2]
[392823195,1761999184889,6889.6907402,0.000149,2]
[392823196,1761999184912,10000.01,0.000149,2]
[392823197,1761999184935,8030.78743331,0.000149,2]
[392823198,1761999198176,942.76,0.00014632,2]
[392823199,1761999253868,159.16906,0.0001485,2]
[392823200,1761999292571,-332.62573216,0.00014991,2]
[392823201,1761999292598,-500.0,0.00014991,2]
[392823202,1761999292625,-151.0,0.00014991,2]
[392823203,1761999292648,-151.0,0.00014991,2]
[392823204,1761999292672,-151.0,0.00014991,2]
[392823205,1761999292695,-151.0,0.00014991,2]
[392823206,1761999292719,-151.0,0.00014991,2]
[392823207,1761999292741,-151.0,0.00014991,2]
[392823208,1761999292765,-151.0,0.00014991,2]
[392823209,1761999292788,-151.0,0.00014991,2]
[392823210,1761999292813,-151.0,0.00014991,2]
[392823211,1761999292837,-151.0,0.00014991,2]
[392823212,1761999292860,-553.64373806,0.00014991,2]
[392823213,1761999292884,-151.0,0.00014991,2]
[392823214,1761999292911,-151.0,0.00014991,2]
[392823215,1761999292941,-151.0,0.00014991,2]
[392823216,1761999292964,-151.0,0.00014991,2]
[392823217,1761999292988,-151.0,0.00014991,2]
[392823218,1761999293011,-151.0,0.00014991,2]
[392823219,1761999293035,-151.0,0.00014991,2]
[392823220,1761999293059,-151.0,0.00014991,2]
[392823221,1761999293083,-151.0,0.00014991,2]
[392823222,1761999293108,-151.0,0.00014991,2]
[392823223,1761999293132,-151.0,0.00014991,2]
[392823224,1761999293439,-151.0,0.00014991,2]
[392823225,1761999293466,-151.0,0.00014991,2]
[392823226,1761999293491,-248.71531821,0.00014991,2]
[392823227,1761999293515,-250.0,0.00014995,2]
[392823228,1761999293537,-150.0,0.00014998,2]
[392823229,1761999293563,-500.0,0.00014999,2]
[392823230,1761999293586,-500.0,0.00014999,2]
[392823231,1761999293617,-500.0,0.00014999,2]
[392823232,1761999293644,-500.0,0.00014999,2]
[392823233,1761999293669,-500.0,0.00014999,2]
[392823234,1761999293694,-500.0,0.00014999,2]
[392823235,1761999293718,-500.0,0.00014999,2]
[392823236,1761999293743,-500.0,0.00014999,2]
[392823237,1761999293767,-500.0,0.00014999,2]
[392823238,1761999293794,-500.0,0.00014999,2]
[392823239,1761999293819,-300.0,0.00014999,2]
[392823240,1761999293847,-500.0,0.00014999,2]
[392823241,1761999293873,-500.0,0.00014999,2]
[392823242,1761999293899,-500.0,0.00014999,2]
[392823243,1761999293925,-320.01521157,0.00014999,2]
[392823244,1761999479921,1503.64617912,0.0003,120]
[392823245,1761999601808,281.64138,0.0001485,2]
[392823246,1761999617974,679.75,0.00014515,2]
[392823247,1761999692946,1482.033,0.000147,2]
[392823250,1761999782381,500.0,0.00030136,120]
[392823251,1761999782620,500.0,0.0003041,120]
[392823252,1761999782854,500.0,0.00030684,120]
[392823253,1761999783095,500.0,0.00030958,120]
[392823254,1761999783341,500.0,0.00031232,120]
[392823255,1761999783672,485.52,0.00031506,120]
[392823256,1761999903312,150.0,0.00013488,2]
[392823257,1761999903377,150.0,0.00014237,2]
[392823258,1761999907069,150.0,0.00013488,2]
[392823259,1761999907108,150.0,0.00014237,2]
[392823261,1761999907338,150.0,0.00013488,2]
[392823262,1761999907382,150.0,0.00013987,2]
[392823263,1761999907468,150.0,0.00014487,2]
[392823264,1761999910389,150.0,0.00013488,2]
[392823265,1761999914106,150.0,0.00013488,2]
[392823266,1761999914146,150.0,0.00013862,2]
[392823267,1761999914202,150.0,0.00014237,2]
[392823268,1761999914267,150.0,0.00014612,2]
[392823269,1761999926334,268.58161013,0.00013488,2]
[392823270,1761999926662,150.0,0.00013488,2]
[392823271,1761999928051,150.0,0.00013488,2]
[392823272,1761999961200,336.0,0.00014782,2]
[392823273,1761999992558,234.70115,0.0001485,2]
[392823274,1762000033437,151.0,0.00014962,2]
[392823277,1762000059865,180.98017837,0.00014962,2]
[392823360,1762000166450,1641.55,0.00014722,2]
[392823474,1762000210756,200.0,0.00014766,2]
[392823495,1762000232338,-166.67,0.00014962,2]
[392823496,1762000232347,-86.67716714,0.00014966,2]
[392823537,1762000238093,-163.32283286,0.00014966,2]
[392823538,1762000238103,-969.96525369,0.00014971,2]
[392823539,1762000238113,-559.0,0.00014977,2]
[392823540,1762000238123,-300.0,0.00014979,2]
[392823541,1762000238132,-1200.0,0.00014979,2]
[392823542,1762000238142,-16283.28629851,0.0001498,2]
[392823543,1762000238153,-693.89683839,0.0001498,2]
[392823544,1762000238204,-1972.29999997,0.0001498,2]
[392823545,1762000238261,-417.30730863,0.0001498,2]
[392823546,1762000238273,-13386.4264774,0.0001498,2]
[392823547,1762000238284,-174.31585873,0.00014986,2]
[392823548,1762000238293,-13.13578122,0.00014986,2]
[392823549,1762000238318,-197.57147352,0.00014986,2]
[392823550,1762000238327,-239.9868507,0.00014986,2]
[392823551,1762000238336,-183.36943523,0.00014986,2]
[392823552,1762000238345,-158.84406764,0.00014986,2]
[392823553,1762000238355,-150.0,0.00014986,2]
[392823554,1762000238365,-61.81276691,0.00014986,2]
[392823555,1762000238376,-138.5517241,0.00014986,2]
[392823556,1762000238386,-192.05671999,0.0001499,2]
[392823557,1762000238396,-179.98478843,0.00014999,2]
[392823558,1762000238405,-500.0,0.00014999,2]
[392823559,1762000238414,-166.17554865,0.00014999,2]
[392823560,1762000238432,-333.82445135,0.00014999,2]
[392823561,1762000238442,-500.0,0.00014999,2]
[392823562,1762000238451,-263.17554865,0.00014999,2]
[392823564,1762000240291,-236.82445135,0.00014999,2]
[392823565,1762000240301,-500.0,0.00014999,2]
[392823566,1762000240311,-543.12693773,0.00014999,2]
[392823567,1762000240322,-500.0,0.00014999,2]
[392823568,1762000240332,-500.0,0.00014999,2]
[392823569,1762000240342,-500.0,0.00014999,2]
[392823570,1762000240351,-292.3597,0.00014999,2]
[392823571,1762000240360,-1000.0,0.00014999,2]
[392823572,1762000240370,-2347.0,0.00015,2]
[392823573,1762000240380,-68065.24975597,0.00015,2]
[392823574,1762000240405,-1650.95,0.00015,2]
[392823575,1762000240456,-853.78539705,0.00015,2]
[392823576,1762000240511,-423.11794635,0.00015,2]
[392823577,1762000240569,-4209.23353818,0.00015,2]
[392823578,1762000240624,-895.85584663,0.00015,2]
[392823579,1762000240681,-332.57952245,0.00015,2]
[392823621,1762000246505,-3420.0,0.00014977,2]
[392823622,1762000246516,-500.0,0.00014999,2]
[392823623,1762000246526,-690068.3049025,0.00015,2]
[392823624,1762000246537,-26446.30378798,0.00015,2]
[392823625,1762000246591,-500.0,0.00014999,2]
[392823626,1762000246600,-500.0,0.00014999,2]
[392823627,1762000246610,-500.0,0.00014999,2]
[392823628,1762000246621,-100066.42123907,0.00015,2]
[392823629,1762000265856,1242.8872,0.000149,2]
[392823630,1762000293047,1200.8854815,0.000147,2]
[392823631,1762000293069,180.4915185,0.000147,2]
[392823632,1762000302047,166.54,7.544e-05,2]
[392823634,1762000325593,166.67,0.00014304,2]
[392823637,1762000383173,195.58429,0.0001485,2]
[392823638,1762000408180,9290.7241915,0.000149,2]
[392823639,1762000408203,10000.01,0.000149,2]
[392823640,1762000408225,10000.01,0.000149,2]
[392823641,1762000408247,10000.01,0.000149,2]
[392823642,1762000408269,10000.01,0.000149,2]
[392823643,1762000408290,8370.78126536,0.000149,2]
[392823644,1762000425848,400.1224831,0.000149,2]
[392823645,1762000431841,584.63189581,0.000149,2]
[392823646,1762000560384,644.47435573,0.000149,2]
[392823647,1762000560405,1.78664427,0.000149,2]
[392823651,1762000773859,162.98691,0.0001485,2]
[392823654,1762000824124,807.98,0.00013699,2]
[392823655,1762000949970,500.0,0.00030136,120]
[392823656,1762000950205,419.97152658,0.0003041,120]
[392823686,1762001113180,150.0,0.00013488,2]
[392823689,1762001116577,236.77189105,0.00013488,2]
[392823690,1762001121965,217.93660404,0.00013488,2]
[392823691,1762001128286,150.0,0.00013488,2]
[392823692,1762001131140,168.0,0.00014868,2]
[392823693,1762001136852,168.0,0.0001469,2]
[392823727,1762001253436,1425.0,0.00014839,2]
[392823729,1762001268946,3872.219,0.000149,2]
[392823744,1762001432310,-157.77,0.00014975,2]
[392823745,1762001432320,-195.0,0.00014981,2]
[392823746,1762001432329,-150.0,0.00014988,2]
[392823747,1762001432338,-34.00189105,0.00014989,2]
[392823748,1762001432422,-265.99810895,0.00014989,2]
[392823749,1762001432432,-122.82104343,0.00014991,2]
[392823750,1762001432445,-28.17895657,0.00014991,2]
[392823751,1762001432455,-229.0,0.00014997,2]
[392823752,1762001432465,-500.0,0.00014998,2]
[392823753,1762001432474,-42.82104343,0.00014998,2]
[392823754,1762001432596,-530.20322539,0.00014998,2]
[392823755,1762001432607,-486.63638451,0.00014998,2]
[392823756,1762001432618,-13.36361549,0.00014998,2]
[392823757,1762001432628,-500.0,0.00014998,2]
[392823758,1762001432637,-500.0,0.00014998,2]
[392823760,1762001432649,-500.0,0.00014998,2]
[392823762,1762001432658,-500.0,0.00014998,2]
[392823764,1762001432667,-500.0,0.00014998,2]
[392823766,1762001432675,-500.0,0.00014998,2]
[392823768,1762001432684,-500.0,0.00014998,2]
[392823770,1762001432694,-500.0,0.00014998,2]
[392823771,1762001432705,-500.0,0.00014998,2]
[392823774,1762001432714,-500.0,0.00014998,2]
[392823776,1762001432724,-500.0,0.00014998,2]
[392823778,1762001432733,-500.0,0.00014998,2]
[392823779,1762001432742,-340.75380846,0.00014998,2]
[392823782,1762001432753,-159.24619154,0.00014998,2]
[392823784,1762001432762,-500.0,0.00014998,2]
[392823786,1762001432771,-500.0,0.00014998,2]
[392823788,1762001432780,-136.06833054,0.00014999,2]
[392823790,1762001432791,-7719.90987126,0.00014999,2]
[392823792,1762001432799,-47075.0258614,0.00014999,2]
[392823794,1762001432808,-3368.6900454,0.00014999,2]
[392823796,1762001432817,-154.9064396,0.00014999,2]
[392823798,1762001432826,-1000.0,0.00014999,2]
[392823800,1762001432835,-91260.64567568,0.00014999,2]
[392823811,1762001438311,-25510.87537972,0.00014999,2]
[392823812,1762001438320,-344.1308553,0.00014999,2]
[392823813,1762001438330,-1874.0,0.00015,2]
[392823814,1762001438339,-9064.55643101,0.00015,2]
[392823815,1762001438367,-1854.4231002,0.00015,2]
[392823816,1762001438379,-31297.41389712,0.00015,2]
[392823817,1762001438390,-9837.42464024,0.00015,2]
[392823818,1762001438401,-7755.24094516,0.00015,2]
[392823819,1762001438412,-251.65967143,0.00015,2]
[392823820,1762001438423,-96547.30347584,0.00015,2]
[392823821,1762001438475,-5552.51701183,0.00015,2]
[392823822,1762001440440,-15499.99999998,0.00015,2]
[392823825,1762001440560,4248.6663,0.000149,2]
[392823827,1762001440603,-1686.74683735,0.00015,2]
[392823828,1762001440714,-500.0,0.00015,2]
[392823829,1762001440726,-649.49634291,0.00015,2]
[392823830,1762001440738,-11430.0,0.00015,2]
[392823835,1762001443499,-251.262,0.00015,2]
[392823836,1762001443511,-219000.0,0.00015,2]
[392823837,1762001443608,-10911.0,0.00015,2]
[392823838,1762001443665,-2942.78180219,0.00015,2]
[392823851,1762001446558,-12049.03394522,0.00015,2]
[392823852,1762001446570,-473.04336158,0.00015,2]
[392823853,1762001446581,-2186.0,0.00015,2]
[392823856,1762001493001,1105.102,0.000147,2]
[392823861,1762001610264,774.0227,0.00014899,2]
[392823862,1762001610288,10000.01,0.00014899,2]
[392823863,1762001610311,10000.01,0.00014899,2]
[392823864,1762001610334,395.037,0.00014899,2]
[392823865,1762001627119,1000.0,0.00014899,2]
[392823866,1762001701613,300.0,0.00014899,2]
[392823867,1762001702808,1200.0,0.00014899,2]
[392823868,1762001719854,268.46332,0.0001485,2]
[392823869,1762001752847,168.0,0.00014438,2]
[392823870,1762001756133,168.0,0.00014759,2]
[392823871,1762001762816,168.0,0.00014398,2]
[392823874,1762001929309,150.0,0.00014899,2]
[392823875,1762001970487,168.0,0.00014519,2]
[392823876,1762001973831,168.0,0.00014774,2]
[392823877,1762001985829,728.09495598,0.00014885,2]
[392823878,1762002001459,323.0,0.00014899,2]
[392823881,1762002014218,-1622.7519,0.000149,2]
[392823882,1762002014464,-1009.25873723,0.000149,2]
[392823883,1762002014671,-2018.51747446,0.000149,2]
[392823884,1762002014820,-4037.03494892,0.000149,2]
[392823885,1762002014941,-1925.94010216,0.000149,2]
[392823887,1762002026852,-4729.92875748,0.000149,2]
[392823888,1762002026972,-1353.93465748,0.000149,2]
[392823889,1762002026995,-7292.14068504,0.000149,2]
[392823890,1762002059640,588.34077081,0.00031506,120]
[392823891,1762002067836,159.20771,0.0001485,2]
[392823894,1762002105632,-166.95240209,0.000149,2]
[392823895,1762002105703,-9506.89748582,0.000149,2]
[392823896,1762002105835,-10000.01,0.000149,2]
[392823897,1762002105962,-10000.01,0.000149,2]
[392823898,1762002106090,-10000.01,0.000149,2]
[392823899,1762002106229,-823.78077511,0.000149,2]
[392823900,1762002106258,-163.4868763,0.000149,2]
[392823901,1762002106287,-482.55697412,0.000149,2]
[392823902,1762002106358,-7060.36074894,0.000149,2]
[392823903,1762002106382,-10000.01,0.000149,2]
[392823904,1762002106478,-10000.01,0.000149,2]
[392823905,1762002106588,-2476.24907066,0.000149,2]
[392823906,1762002106617,-460.21347018,0.000149,2]
[392823907,1762002106647,-300.0,0.000149,2]
[392823908,1762002106678,-968.84079362,0.000149,2]
[392823909,1762002106759,-1589.40333108,0.000149,2]
[392823910,1762002106792,-2454.902228,0.000149,2]
[392823911,1762002106823,-300.96819241,0.00014901,2]
[392823912,1762002106852,-300.0,0.00014901,2]
[392823913,1762002106881,-195.0,0.00014901,2]
[392823914,1762002106914,-194.0,0.00014903,2]
[392823915,1762002106945,-194.0,0.00014949,2]
[392823916,1762002106976,-171.50950967,0.00014973,2]
[392823917,1762002107004,-501.22801815,0.00014973,2]
[392823918,1762002107032,-500.0,0.00014973,2]
[392823919,1762002107097,-500.0,0.00014973,2]
[392823920,1762002107125,-501.53442277,0.00014973,2]
[392823921,1762002107156,-167.98860431,0.00014973,2]
[392823922,1762002107197,-500.0,0.00014973,2]
[392823923,1762002107226,-500.0,0.00014973,2]
[392823924,1762002107256,-500.0,0.00014973,2]
[392823925,1762002107286,-500.0,0.00014973,2]
[392823926,1762002107315,-500.0,0.00014973,2]
[392823927,1762002107344,-516.43133353,0.00014973,2]
[392823928,1762002107372,-500.0,0.00014973,2]
[392823929,1762002107402,-128.10127878,0.00014973,2]
[392823930,1762002107781,-266.65858106,0.00014973,2]
[392823931,1762002107809,-105.24014016,0.00014973,2]
[392823932,1762002107819,-394.75985984,0.00014973,2]
[392823933,1762002108849,-107.30138769,0.00014973,2]
[392823934,1762002108880,-500.0,0.00014973,2]
[392823935,1762002108913,-500.0,0.00014973,2]
[392823936,1762002108945,-500.0,0.00014973,2]
[392823937,1762002108974,-500.0,0.00014973,2]
[392823938,1762002109005,-500.0,0.00014973,2]
[392823939,1762002109033,-501.37334608,0.00014973,2]
[392823940,1762002109064,-200.0,0.00014984,2]
[392823941,1762002109092,-1182.66053246,0.00014986,2]
[392823942,1762002109232,-1017.33946754,0.00014986,2]
[392823943,1762002111634,-573.0,0.0001499,2]
[392823944,1762002111666,-3420.0,0.0001499,2]
[392823945,1762002111695,-820.0,0.0001499,2]
[392823946,1762002111770,-374.01,0.0001499,2]
[392823947,1762002111800,-3722.02,0.0001499,2]
[392823948,1762002111839,-2555.97,0.0001499,2]
[392823949,1762002111908,-1152.0,0.0001499,2]
[392823950,1762002111935,-2188.503,0.0001499,2]
[392823951,1762002111967,-607.0,0.0001499,2]
[392823952,1762002112030,-2105.004,0.0001499,2]
[392823953,1762002112063,-4362.996,0.0001499,2]
[392823954,1762002112092,-559.0,0.0001499,2]
[392823955,1762002112160,-156.018,0.0001499,2]
[392823956,1762002112192,-1437.982,0.0001499,2]
[392823957,1762002112221,-1314.0,0.0001499,2]
[392823958,1762002112249,-905.0,0.0001499,2]
[392823959,1762002112279,-1187.0,0.0001499,2]
[392823960,1762002112523,-312.046,0.0001499,2]
[392823961,1762002112557,-506.954,0.0001499,2]
[392823962,1762002112585,-1272.0,0.0001499,2]
[392823963,1762002124715,6442.102,0.000149,2]
[392823964,1762002124741,10000.01,0.000149,2]
[392823965,1762002124766,10000.01,0.000149,2]
[392823966,1762002124793,10000.01,0.000149,2]
[392823967,1762002148827,-3557.908,0.000149,2]
[392823968,1762002148953,-10000.01,0.000149,2]
[392823969,1762002149062,-10000.01,0.000149,2]
[392823970,1762002149199,-10000.01,0.000149,2]
[392823971,1762002149311,-10000.01,0.000149,2]
[392823972,1762002149432,-10000.01,0.000149,2]
[392823973,1762002151202,-10000.01,0.000149,2]
[392823974,1762002151338,-10000.01,0.000149,2]
[392823975,1762002151462,-10000.01,0.000149,2]
[392823976,1762002151585,-10000.01,0.000149,2]
[392823977,1762002154277,-1429.7871,0.000149,2]
[392823978,1762002154308,-319.47517516,0.000149,2]
[392823979,1762002154339,-248.71531821,0.00014964,2]
[392823980,1762002154635,-206.42094446,0.00014991,2]
[392823981,1762002154665,-151.0,0.00014991,2]
[392823982,1762002154694,-151.0,0.00014991,2]
[392823983,1762002154722,-151.0,0.00014991,2]
[392823984,1762002154751,-151.0,0.00014991,2]
[392823985,1762002154778,-151.0,0.00014991,2]
[392823986,1762002154806,-151.0,0.00014991,2]
[392823987,1762002154834,-151.0,0.00014991,2]
[392823988,1762002154862,-151.0,0.00014991,2]
[392823989,1762002154891,-151.0,0.00014991,2]
[392823990,1762002154919,-165.33450404,0.00014991,2]
[392823991,1762002154947,-151.0,0.00014991,2]
[392823992,1762002154974,-151.0,0.00014991,2]
[392823993,1762002155004,-151.0,0.00014991,2]
[392823994,1762002155031,-151.0,0.00014991,2]
[392823995,1762002155064,-151.0,0.00014991,2]
[392823996,1762002155095,-207.55137453,0.00014991,2]
[392823997,1762002155124,-151.0,0.00014991,2]
[392823998,1762002155153,-151.0,0.00014991,2]
[392823999,1762002155283,-151.0,0.00014991,2]
[392824000,1762002155312,-151.0,0.00014991,2]
[392824001,1762002155340,-514.84070869,0.00014991,2]
[392824002,1762002155368,-151.0,0.00014991,2]
[392824003,1762002155401,-500.0,0.00014991,2]
[392824004,1762002155432,-151.0,0.00014991,2]
[392824005,1762002155460,-151.0,0.00014991,2]
[392824006,1762002155488,-151.0,0.00014991,2]
[392824007,1762002155516,-258.92180877,0.00014991,2]
[392824008,1762002155544,-151.0,0.00014991,2]
[392824009,1762002155571,-151.0,0.00014991,2]
[392824010,1762002155818,151.0,0.00014991,2]
[392824011,1762002157037,500.0,0.00014973,2]
[392824012,1762002158744,500.0,0.00014973,2]
[392824013,1762002172644,165.95877076,0.000315,120]
[392824014,1762002177245,362.0,0.00014749,2]
[392824015,1762002190914,634.93497474,0.000149,2]
[392824016,1762002195646,982.04624044,0.0001495,2]
[392824018,1762002204910,175.0,0.000148,2]
[392824019,1762002213530,1425.0,0.00014901,2]
[392824020,1762002231931,306.5037499,0.000149,2]
[392824021,1762002231954,137.31218938,0.000149,2]
[392824022,1762002264118,163.75117597,0.00014656,2]
[392824023,1762002268331,279.5419,0.000149,2]
[392824024,1762002280494,972.4764,0.000149,2]
[392824025,1762002295036,8446.92833465,0.000149,2]
[392824026,1762002295065,10000.01,0.000149,2]
[392824027,1762002295089,10000.01,0.000149,2]
[392824028,1762002295114,10000.01,0.000149,2]
[392824029,1762002306864,154.12747994,0.00013488,2]
[392824030,1762002307482,220.29140277,0.00013488,2]
[392824031,1762002307551,150.0,0.00013488,2]
[392824032,1762002313789,150.0,0.00013488,2]